[Event "15th Golden Prague Rapid Open"]
[Site "Prague"]
[Date "2019.06.30"]
[Round "1.1"]
[White "Jirovsky, Pavel"]
[Black "Ocelak, Jakub"]
[Result "1-0"]
[ECO "D11"]
[WhiteElo "2322"]
[BlackElo "1701"]
[Annotator "NA"]
[PlyCount "91"]
[EventDate "2019.06.30"]
[EventType "swiss"]
[EventCountry "CZE"]
[SourceTitle "playchess.com"]
[Source "ChessBase"]
[SourceQuality "1"]
[TimeControl "720+3"]

1. d4 {[%emt 0:00:01]} Nf6 {[%emt 0:00:00]} 2. Nf3 {[%emt 0:00:02]} d5 {[%emt 0:00:02]} 3. c4 {[%emt 0:00:03]} c6 {[%emt 0:00:02]} 4. Qc2 {[%emt 0:00:01]} g6 {[%emt 0:00:04]} 5. g3 {[%emt 0:00:02]} Bg7 {[%emt 0:00:46]} 6. Bg2 {[%emt 0:00:02]} dxc4 {[%emt 0:00:12]} 7. Qxc4 {[%emt 0:00:02]} Be6 {[%emt 0:00:19]} 8. Qc2 {[%emt 0:00:04]} Bf5 {[%emt 0:00:04]} 9. Qb3 {[%emt 0:00:02]} Qb6 {[%emt 0:00:02]} 10. Qxb6 {[%emt 0:00:02]} axb6 {[%emt 0:00:02]} 11. Nbd2 {[%emt 0:00:08]} O-O {[%emt 0:00:12]} 12. O-O {[%emt 0:00:03]} Na6 {[%emt 0:00:08]} 13. a3 {[%emt 0:00:14]} Rfd8 {[%emt 0:00:04]} 14. e3 {[%emt 0:00:18]} Nb4 {[%emt 0:00:37]} 15. b3 {[%emt 0:00:14]} Bd3 {[%emt 0:00:35]} 16. Rd1 {[%emt 0:00:15]} Be2 {[%emt 0:00:09]} 17. Re1 {[%emt 0:00:07]} Bxf3 {[%emt 0:00:06]} 18. Nxf3 {[%emt 0:00:26]} Nc2 {[%emt 0:00:05]} 19. Bb2 {[%emt 0:00:03]} Nxe1 {[%emt 0:00:20]} 20. Nxe1 {[%emt 0:00:10]} Ra7 {[%emt 0:00:44]} 21. Rc1 {[%emt 0:00:45]} Nd7 {[%emt 0:01:33]} 22. a4 {[%emt 0:00:17]} c5 {[%emt 0:00:57]} 23. Nd3 {[%emt 0:00:35]} Nb8 {[%emt 0:01:20]} 24. d5 {[%emt 0:00:38]} e6 {[%emt 0:00:47]} 25. e4 {[%emt 0:00:27]} Na6 {[%emt 0:00:36]} 26. Bxg7 {[%emt 0:00:13]} Kxg7 {[%emt 0:00:02]} 27. Nb2 {[%emt 0:00:01]} exd5 {[%emt 0:00:23]} 28. exd5 {[%emt 0:00:02]} Nb4 {[%emt 0:00:27]} 29. Rd1 {[%emt 0:00:02]} b5 {[%emt 0:00:28]} 30. axb5 {[%emt 0:00:12]} Ra3 {[%emt 0:00:03]} 31. Na4 {[%emt 0:00:08]} Rxb3 {[%emt 0:00:16]} 32. Nxc5 {[%emt 0:00:03]} Rc3 {[%emt 0:00:14]} 33. Nxb7 {[%emt 0:00:14]} Rd7 {[%emt 0:00:05]} 34. Na5 {[%emt 0:00:11]} Rd3 {[%emt 0:00:11]} 35. Rxd3 {[%emt 0:01:07]} Nxd3 {[%emt 0:00:01]} 36. b6 {[%emt 0:00:02]} Nc5 {[%emt 0:00:03]} 37. f4 {[%emt 0:00:16]} Kf6 {[%emt 0:00:19]} 38. Kf2 {[%emt 0:00:04]} Nb7 {[%emt 0:00:11]} 39. Nc4 {[%emt 0:00:59]} Ke7 {[%emt 0:00:32]} 40. Ke3 {[%emt 0:00:03]} f5 {[%emt 0:00:19]} 41. Kd4 {[%emt 0:00:03]} Nd6 {[%emt 0:00:04]} 42. Ne5 {[%emt 0:01:01]} Rb7 {[%emt 0:00:08]} 43. Kc5 {[%emt 0:00:02]} Ne4+ {[%emt 0:00:11]} 44. Kc6 {[%emt 0:00:19]} Rb8 {[%emt 0:00:14]} 45. Kc7 {[%emt 0:00:07]} Rd8 {[%emt 0:00:06]} 46. Nc6+ {[%emt 0:04:08] Rb8} 1-0

[Event "15th Golden Prague Rapid Open"]
[Site "Prague"]
[Date "2019.06.30"]
[Round "1.2"]
[White "Barton, Milan"]
[Black "Kiss, Pal"]
[Result "0-1"]
[ECO "B36"]
[WhiteElo "1763"]
[BlackElo "2278"]
[Annotator "NA"]
[PlyCount "85"]
[EventDate "2019.06.30"]
[EventType "swiss"]
[EventCountry "CZE"]
[SourceTitle "playchess.com"]
[Source "ChessBase"]
[SourceQuality "1"]
[TimeControl "720+3"]

1. e4 {[%emt 0:00:03]} c5 {[%emt 0:00:00]} 2. Nf3 {[%emt 0:00:02]} Nc6 {[%emt 0:00:00]} 3. d4 {[%emt 0:00:02]} cxd4 {[%emt 0:00:00]} 4. Nxd4 {[%emt 0:00:02]} g6 {[%emt 0:00:01]} 5. c4 {[%emt 0:00:02]} Nf6 {[%emt 0:00:02]} 6. f3 {[%emt 0:00:01]} Nxd4 {[%emt 0:00:05]} 7. Qxd4 {[%emt 0:00:03]} d6 {[%emt 0:00:01]} 8. Nc3 {[%emt 0:00:04]} Bg7 {[%emt 0:00:02]} 9. Qd1 {[%emt 0:00:04]} O-O {[%emt 0:00:02]} 10. Be3 {[%emt 0:00:04]} Be6 {[%emt 0:00:25]} 11. Rc1 {[%emt 0:12:06]} Qa5 {[%emt 0:11:55]} 12. Bd2 {[%emt 0:00:00]} Rfc8 {[%emt 0:00:00]} 13. b3 {[%emt 0:00:00]} a6 {[%emt 0:00:00]} 14. Rc2 {[%emt 0:00:00]} b5 {[%emt 0:00:00]} 15. Nxb5 {[%emt 0:00:00]} Qb6 {[%emt 0:00:00]} 16. Nc3 {[%emt 0:00:00]} Nd7 {[%emt 0:00:00]} 17. Na4 {[%emt 0:00:00]} Qc7 {[%emt 0:00:00]} 18. Be2 {[%emt 0:00:21]} Qa7 {[%emt 0:00:00]} 19. Bc3 {[%emt 0:00:00]} Ne5 {[%emt 0:00:00]} 20. Rd2 {[%emt 0:00:00]} Nc6 {[%emt 0:00:00]} 21. Bxg7 {[%emt 0:00:09]} Kxg7 {[%emt 0:00:30]} 22. Rb2 {[%emt 0:00:00]} Rab8 {[%emt 0:00:00]} 23. Qd2 {[%emt 0:00:00]} Nd4 {[%emt 0:00:00]} 24. Bd3 {[%emt 0:00:00]} Bd7 {[%emt 0:00:00]} 25. Nc3 {[%emt 0:00:00]} a5 {[%emt 0:00:00]} 26. Qf2 {[%emt 0:00:00]} Qc5 {[%emt 0:00:00]} 27. O-O {[%emt 0:00:00]} e5 {[%emt 0:00:00]} 28. Nd5 {[%emt 0:00:00]} Be6 {[%emt 0:00:00]} 29. Rfb1 {[%emt 0:00:00]} Bxd5 {[%emt 0:00:00]} 30. exd5 {[%emt 0:00:00]} f5 {[%emt 0:00:00]} 31. Kh1 {[%emt 0:00:00]} Re8 {[%emt 0:00:00]} 32. Re1 {[%emt 0:00:00]} Re7 {[%emt 0:00:00]} 33. Qh4 {[%emt 0:00:00]} Reb7 {[%emt 0:00:00]} 34. Reb1 {[%emt 0:00:00]} Qa3 {[%emt 0:00:00]} 35. Qe1 {[%emt 0:00:00]} Qc5 {[%emt 0:00:00]} 36. Qc3 {[%emt 0:00:00]} Qb4 {[%emt 0:00:00]} 37. Qc1 {[%emt 0:00:00]} h6 {[%emt 0:00:00]} 38. Qd2 {[%emt 0:00:00]} Qxd2 {[%emt 0:00:00]} 39. Rxd2 {[%emt 0:00:00]} a4 {[%emt 0:00:00]} 40. Rdb2 {[%emt 0:00:00]} axb3 {[%emt 0:00:00]} 41. axb3 {[%emt 0:00:00]} Nxb3 {[%emt 0:00:00]} 42. Rxb3 {[%emt 0:00:00]} Rxb3 {[%emt 0:00:00]} 43. Bc2 {[%emt 0:01:06]} 0-1

[Event "15th Golden Prague Rapid Open"]
[Site "Prague"]
[Date "2019.06.30"]
[Round "1.3"]
[White "Rydl, Jiri"]
[Black "Burita, Dobroslav"]
[Result "1-0"]
[ECO "A39"]
[WhiteElo "2422"]
[BlackElo "1614"]
[Annotator "NA"]
[PlyCount "61"]
[EventDate "2019.06.30"]
[EventType "swiss"]
[EventCountry "CZE"]
[SourceTitle "playchess.com"]
[Source "ChessBase"]
[SourceQuality "1"]
[TimeControl "720+3"]

1. c4 {[%emt 0:00:01]} c5 {[%emt 0:00:00]} 2. g3 {[%emt 0:00:05]} Nc6 {[%emt 0:00:04]} 3. Bg2 {[%emt 0:00:03]} g6 {[%emt 0:00:05]} 4. Nc3 {[%emt 0:00:03]} Bg7 {[%emt 0:00:01]} 5. Nf3 {[%emt 0:00:08]} Nf6 {[%emt 0:00:02]} 6. d4 {[%emt 0:00:07]} cxd4 {[%emt 0:00:22]} 7. Nxd4 {[%emt 0:00:03]} Nxd4 {[%emt 0:00:19]} 8. Qxd4 {[%emt 0:00:03]} O-O {[%emt 0:00:01]} 9. O-O {[%emt 0:00:08]} d6 {[%emt 0:00:17]} 10. Qd3 {[%emt 0:00:02]} Rb8 {[%emt 0:00:59]} 11. Bg5 {[%emt 0:00:40]} Be6 {[%emt 0:00:31]} 12. Rac1 {[%emt 0:01:12]} Qd7 {[%emt 0:00:34]} 13. Rfd1 {[%emt 0:00:18]} Bh3 {[%emt 0:00:42]} 14. Bh1 {[%emt 0:00:22]} a6 {[%emt 0:02:53]} 15. Bxf6 {[%emt 0:01:38]} Bxf6 {[%emt 0:00:03]} 16. c5 {[%emt 0:00:11]} Rfd8 {[%emt 0:01:57]} 17. cxd6 {[%emt 0:00:23]} Qxd6 {[%emt 0:00:43]} 18. Qxd6 {[%emt 0:00:38]} Rxd6 {[%emt 0:00:01]} 19. Rxd6 {[%emt 0:00:03]} exd6 {[%emt 0:00:01]} 20. Rd1 {[%emt 0:00:52]} Bxc3 {[%emt 0:00:31]} 21. bxc3 {[%emt 0:00:03]} Rc8 {[%emt 0:00:06]} 22. Bxb7 {[%emt 0:00:04]} Rxc3 {[%emt 0:00:01]} 23. Bxa6 {[%emt 0:00:17]} Rc2 {[%emt 0:00:07]} 24. a4 {[%emt 0:00:04]} Ra2 {[%emt 0:00:59]} 25. Bb5 {[%emt 0:00:04]} Be6 {[%emt 0:00:29]} 26. f3 {[%emt 0:00:19]} Bb3 {[%emt 0:00:22]} 27. Rd4 {[%emt 0:00:02]} d5 {[%emt 0:00:05]} 28. Kf2 {[%emt 0:00:04]} Kg7 {[%emt 0:00:11]} 29. Rb4 {[%emt 0:00:19]} Bd1 {[%emt 0:00:18]} 30. Ke1 {[%emt 0:00:16]} Ra1 {[%emt 0:00:22]} 31. Kd2 {[%emt 0:00:02]} 1-0

[Event "15th Golden Prague Rapid Open"]
[Site "Prague"]
[Date "2019.06.30"]
[Round "1.6"]
[White "Rezny, Frantisek"]
[Black "Soural, Jan"]
[Result "0-1"]
[ECO "C02"]
[WhiteElo "1513"]
[BlackElo "2196"]
[Annotator "NA"]
[PlyCount "56"]
[EventDate "2019.06.30"]
[EventType "swiss"]
[EventCountry "CZE"]
[SourceTitle "playchess.com"]
[Source "ChessBase"]
[SourceQuality "1"]
[TimeControl "720+3"]

1. e4 {[%emt 0:00:00]} e6 {[%emt 0:00:00]} 2. d4 {[%emt 0:00:14]} d5 {[%emt 0:00:00]} 3. e5 {[%emt 0:00:03]} c5 {[%emt 0:00:01]} 4. c3 {[%emt 0:00:12]} Nc6 {[%emt 0:00:01]} 5. Nf3 {[%emt 0:00:07]} Bd7 {[%emt 0:00:01]} 6. Bb5 {[%emt 0:00:13]} Nxe5 {[%emt 0:00:09]} 7. Nxe5 {[%emt 0:00:24]} Bxb5 {[%emt 0:00:02]} 8. Na3 {[%emt 0:00:33]} Bd7 {[%emt 0:01:38]} 9. O-O {[%emt 0:00:41]} Nf6 {[%emt 0:00:02]} 10. Bg5 {[%emt 0:00:53]} Be7 {[%emt 0:00:33]} 11. dxc5 {[%emt 0:00:45]} Bxc5 {[%emt 0:00:14]} 12. c4 {[%emt 0:00:36]} Bc6 {[%emt 0:02:00]} 13. Rc1 {[%emt 0:00:58]} Be7 {[%emt 0:00:38]} 14. cxd5 {[%emt 0:00:33]} Qxd5 {[%emt 0:00:28]} 15. Nxc6 {[%emt 0:00:23]} bxc6 {[%emt 0:00:01]} 16. Bxf6 {[%emt 0:00:43]} Bxf6 {[%emt 0:00:16]} 17. Qa4 {[%emt 0:00:13]} O-O {[%emt 0:00:03]} 18. b3 {[%emt 0:00:14]} c5 {[%emt 0:00:31]} 19. Rfd1 {[%emt 0:00:04]} Bd4 {[%emt 0:00:17]} 20. Nc2 {[%emt 0:00:28]} Rfd8 {[%emt 0:00:31]} 21. Nxd4 {[%emt 0:00:09]} cxd4 {[%emt 0:00:02]} 22. Rc4 {[%emt 0:00:18]} e5 {[%emt 0:00:19]} 23. f4 {[%emt 0:00:05]} d3 {[%emt 0:00:35]} 24. fxe5 {[%emt 0:00:36]} Qxe5 {[%emt 0:00:03]} 25. Re4 {[%emt 0:00:35]} Qc5+ {[%emt 0:00:11]} 26. Kh1 {[%emt 0:00:07]} d2 {[%emt 0:00:24]} 27. Rc4 {[%emt 0:00:15]} Qh5 {[%emt 0:00:19]} 28. b4 {[%emt 0:00:15]} Qe2 {[%emt 0:00:29]} 0-1

[Event "15th Golden Prague Rapid Open"]
[Site "Prague"]
[Date "2019.06.30"]
[Round "1.7"]
[White "Rehak, Martin"]
[Black "Holub, Adam"]
[Result "1-0"]
[ECO "B26"]
[WhiteElo "2071"]
[BlackElo "1433"]
[Annotator "NA"]
[PlyCount "106"]
[EventDate "2019.06.30"]
[EventType "swiss"]
[EventCountry "CZE"]
[SourceTitle "playchess.com"]
[Source "ChessBase"]
[SourceQuality "1"]
[TimeControl "720+3"]

1. e4 {[%emt 0:12:03]} c5 {[%emt 0:12:03]} 2. Nc3 {[%emt 0:00:03]} Nc6 {[%emt 0:00:03]} 3. g3 d6 {[%emt 0:00:03]} 4. Bg2 {[%emt 0:00:06]} g6 {[%emt 0:00:03]} 5. d3 {[%emt 0:00:03]} Bg7 {[%emt 0:00:03]} 6. Be3 {[%emt 0:00:03]} Nf6 {[%emt 0:00:03]} 7. h3 {[%emt 0:00:03]} O-O {[%emt 0:00:03]} 8. Nge2 {[%emt 0:00:03]} a6 {[%emt 0:00:03]} 9. a4 {[%emt 0:00:03]} Rb8 {[%emt 0:00:03]} 10. O-O {[%emt 0:00:03]} b5 {[%emt 0:00:03]} 11. axb5 {[%emt 0:00:03]} axb5 {[%emt 0:00:03]} 12. Qd2 {[%emt 0:00:03]} Bd7 {[%emt 0:00:03]} 13. Bh6 {[%emt 0:00:03]} b4 {[%emt 0:00:03]} 14. Nd1 {[%emt 0:00:03]} Qc8 {[%emt 0:00:03]} 15. g4 {[%emt 0:00:03]} Rd8 {[%emt 0:00:03]} 16. Bxg7 {[%emt 0:00:03]} Kxg7 {[%emt 0:00:03]} 17. c3 {[%emt 0:00:03]} h5 {[%emt 0:00:03]} 18. g5 {[%emt 0:00:03]} Ne8 {[%emt 0:00:03]} 19. h4 {[%emt 0:00:03]} Bh3 {[%emt 0:00:03]} 20. f3 {[%emt 0:00:03]} Nc7 {[%emt 0:00:03]} 21. Nf4 {[%emt 0:00:03]} Bxg2 {[%emt 0:00:03]} 22. Kxg2 Ne6 {[%emt 0:00:03]} 23. Nxe6+ {[%emt 0:00:06]} Qxe6 {[%emt 0:00:03]} 24. Ne3 {[%emt 0:00:03]} bxc3 {[%emt 0:00:03]} 25. bxc3 {[%emt 0:00:03]} Rb7 {[%emt 0:00:03]} 26. d4 {[%emt 0:00:03]} cxd4 {[%emt 0:00:03]} 27. cxd4 Qb3 {[%emt 0:00:03]} 28. Rac1 {[%emt 0:00:06]} Na7 {[%emt 0:00:03]} 29. Nd5 {[%emt 0:00:03]} e6 {[%emt 0:00:03]} 30. Nc3 {[%emt 0:00:03]} Rdb8 {[%emt 0:00:03]} 31. Qf4 {[%emt 0:00:03]} Qa3 {[%emt 0:00:03]} 32. Kg3 {[%emt 0:00:03]} Nc8 {[%emt 0:00:03]} 33. Ne2 {[%emt 0:00:03]} Ne7 {[%emt 0:00:03]} 34. Rc2 {[%emt 0:00:03]} d5 {[%emt 0:00:03]} 35. Kf2 {[%emt 0:00:03]} dxe4 {[%emt 0:00:03]} 36. fxe4 {[%emt 0:00:03]} Rb2 {[%emt 0:00:03]} 37. Rfc1 {[%emt 0:00:03]} Rxc2 {[%emt 0:00:03]} 38. Rxc2 Rb2 {[%emt 0:00:03]} 39. Rxb2 {[%emt 0:00:06]} Qxb2 {[%emt 0:00:03]} 40. Qf6+ {[%emt 0:00:03]} Kf8 {[%emt 0:00:03]} 41. d5 {[%emt 0:00:03]} Qxf6+ {[%emt 0:00:03]} 42. gxf6 {[%emt 0:00:03]} Ng8 43. e5 {[%emt 0:00:03]} exd5 {[%emt 0:00:06]} 44. Ke3 {[%emt 0:00:03]} Ke8 45. Kd4 {[%emt 0:00:03]} Kd7 {[%emt 0:00:06]} 46. Kxd5 {[%emt 0:00:03]} Nh6 {[%emt 0:00:03]} 47. Nf4 {[%emt 0:00:03]} Nf5 {[%emt 0:00:03]} 48. Nxg6 {[%emt 0:00:03]} fxg6 {[%emt 0:00:03]} 49. e6+ Ke8 {[%emt 0:00:03]} 50. Ke5 {[%emt 0:00:06]} Nxh4 {[%emt 0:00:03]} 51. e7 {[%emt 0:00:03]} Kf7 {[%emt 0:00:03]} 52. Kd6 Nf5+ 53. Kd7 Kxf6 {[%emt 0:00:06]} 1-0

[Event "15th Golden Prague Rapid Open"]
[Site "Prague"]
[Date "2019.06.30"]
[Round "1.8"]
[White "Dunder, Ondrej"]
[Black "Groh, Jiri"]
[Result "0-1"]
[ECO "D05"]
[WhiteElo "1649"]
[BlackElo "2001"]
[Annotator "NA"]
[PlyCount "204"]
[EventDate "2019.06.30"]
[EventType "swiss"]
[EventCountry "CZE"]
[SourceTitle "playchess.com"]
[Source "ChessBase"]
[SourceQuality "1"]
[TimeControl "720+3"]

1. Nf3 {[%emt 0:00:00]} c5 {[%emt 0:00:00]} 2. e3 {[%emt 0:00:01]} d5 {[%emt 0:00:01]} 3. d4 {[%emt 0:00:03]} e6 {[%emt 0:00:03]} 4. b3 {[%emt 0:00:06]} Nf6 {[%emt 0:00:02]} 5. Bb2 {[%emt 0:00:01]} Be7 {[%emt 0:00:01]} 6. Be2 {[%emt 0:00:02]} O-O {[%emt 0:00:02]} 7. O-O {[%emt 0:00:01]} Nc6 {[%emt 0:00:01]} 8. Nbd2 {[%emt 0:00:09]} cxd4 {[%emt 0:00:11]} 9. Nxd4 {[%emt 0:00:05]} Nxd4 {[%emt 0:00:02]} 10. Bxd4 {[%emt 0:00:09]} Qc7 {[%emt 0:00:05]} 11. Nf3 {[%emt 0:00:29]} Bd7 {[%emt 0:00:06]} 12. Rc1 {[%emt 0:00:05]} Rac8 {[%emt 0:00:09]} 13. c4 {[%emt 0:00:28]} dxc4 {[%emt 0:00:16]} 14. Rxc4 {[%emt 0:00:14]} Qb8 {[%emt 0:00:02]} 15. Bxf6 {[%emt 0:00:06]} Bxf6 {[%emt 0:00:36]} 16. Qxd7 {[%emt 0:00:10]} Rcd8 {[%emt 0:00:20]} 17. Qc7 {[%emt 0:00:29]} h6 {[%emt 0:00:28]} 18. Qxb8 {[%emt 0:00:41]} Rxb8 {[%emt 0:00:01]} 19. Rfc1 {[%emt 0:00:04]} b6 {[%emt 0:00:18]} 20. Rc7 {[%emt 0:00:08]} a5 {[%emt 0:00:01]} 21. g3 {[%emt 0:00:14]} Rfd8 {[%emt 0:00:14]} 22. Kg2 {[%emt 0:00:24]} b5 {[%emt 0:00:14]} 23. a3 {[%emt 0:01:07]} b4 {[%emt 0:00:06]} 24. axb4 {[%emt 0:00:18]} axb4 {[%emt 0:00:03]} 25. Ra7 {[%emt 0:00:21]} Bc3 {[%emt 0:00:15]} 26. Bc4 {[%emt 0:00:32]} Rb6 {[%emt 0:00:34]} 27. Ng1 {[%emt 0:00:37]} Rd2 {[%emt 0:00:15]} 28. Ne2 {[%emt 0:00:16]} Bf6 {[%emt 0:00:11]} 29. Ra4 {[%emt 0:00:08]} Be7 {[%emt 0:00:43]} 30. Nd4 {[%emt 0:00:16]} Bf6 {[%emt 0:00:02]} 31. Nf3 {[%emt 0:00:16]} Rd8 {[%emt 0:00:03]} 32. Rc2 {[%emt 0:00:31]} Bc3 {[%emt 0:00:12]} 33. Ng1 {[%emt 0:00:22]} Bf6 {[%emt 0:00:31]} 34. Ne2 {[%emt 0:00:03]} Rbb8 {[%emt 0:00:10]} 35. Rca2 {[%emt 0:00:21]} g5 {[%emt 0:00:24]} 36. Ra5 {[%emt 0:00:02]} Rd7 {[%emt 0:00:25]} 37. Rb5 {[%emt 0:00:26]} Rxb5 {[%emt 0:00:10]} 38. Bxb5 {[%emt 0:00:01]} Rb7 {[%emt 0:00:13]} 39. Bc4 {[%emt 0:00:02]} Kg7 {[%emt 0:00:08]} 40. Rd2 {[%emt 0:00:08]} h5 {[%emt 0:00:10]} 41. Nd4 {[%emt 0:00:05]} Kg6 {[%emt 0:00:25]} 42. Nb5 {[%emt 0:00:21]} h4 {[%emt 0:00:24]} 43. f4 {[%emt 0:00:11]} hxg3 {[%emt 0:00:05]} 44. hxg3 {[%emt 0:00:01]} Be7 {[%emt 0:00:21]} 45. Kf3 {[%emt 0:00:06]} Bc5 {[%emt 0:00:10]} 46. fxg5 {[%emt 0:00:13]} Kxg5 {[%emt 0:00:07]} 47. Nd6 {[%emt 0:00:02]} Rc7 {[%emt 0:00:09]} 48. Ne4+ {[%emt 0:00:12]} Kf5 {[%emt 0:00:09]} 49. Nxc5 {[%emt 0:00:34]} Rxc5 {[%emt 0:00:01]} 50. Rd7 {[%emt 0:00:06]} Kf6 {[%emt 0:00:06]} 51. Rb7 {[%emt 0:00:07]} Rf5+ {[%emt 0:00:04]} 52. Kg2 {[%emt 0:00:18]} Re5 {[%emt 0:00:02]} 53. Kf2 {[%emt 0:00:10]} Rf5+ {[%emt 0:00:00]} 54. Ke2 {[%emt 0:00:19]} Rg5 {[%emt 0:00:01]} 55. Rxb4 {[%emt 0:00:07]} Rxg3 {[%emt 0:00:02]} 56. Kf2 {[%emt 0:00:05]} Rg5 {[%emt 0:00:06]} 57. Bd3 {[%emt 0:00:03]} Rd5 {[%emt 0:00:08]} 58. Rf4+ {[%emt 0:00:08]} Ke7 {[%emt 0:00:03]} 59. Bc4 {[%emt 0:00:01]} Rd2+ {[%emt 0:00:03]} 60. Kf3 {[%emt 0:00:01]} Rb2 {[%emt 0:00:05]} 61. Ke4 {[%emt 0:00:09]} Rb1 {[%emt 0:00:04]} 62. Kf3 {[%emt 0:00:03]} Rb2 {[%emt 0:00:07]} 63. Rd4 {[%emt 0:00:09]} Rb1 {[%emt 0:00:12]} 64. Rd2 {[%emt 0:00:07]} Kf6 {[%emt 0:00:11]} 65. Ke4 {[%emt 0:00:07]} Ke7 {[%emt 0:00:10]} 66. Rf2 {[%emt 0:00:05]} Re1 {[%emt 0:00:10]} 67. Re2 {[%emt 0:00:05]} Rb1 {[%emt 0:00:03]} 68. Kd3 {[%emt 0:00:07]} Kd6 {[%emt 0:00:17]} 69. Kc2 {[%emt 0:00:06]} Rg1 {[%emt 0:00:19]} 70. b4 {[%emt 0:00:06]} Rg4 {[%emt 0:00:08]} 71. Kc3 {[%emt 0:00:01]} Kc6 {[%emt 0:00:11]} 72. b5+ {[%emt 0:00:07]} Kc5 {[%emt 0:00:10]} 73. Rh2 {[%emt 0:00:08]} Rxc4+ {[%emt 0:00:02]} 74. Kd3 {[%emt 0:00:08]} Kxb5 {[%emt 0:00:07]} 75. Rh5+ {[%emt 0:00:02]} Rc5 {[%emt 0:00:01]} 76. Rh7 {[%emt 0:00:15]} Rc7 {[%emt 0:00:01]} 77. Rh5+ {[%emt 0:00:02]} Kc6 {[%emt 0:00:03]} 78. Ke4 {[%emt 0:00:02]} Kd6 {[%emt 0:00:01]} 79. Rh6 {[%emt 0:00:06]} Rc4+ {[%emt 0:00:09]} 80. Kd3 {[%emt 0:00:01]} Ra4 {[%emt 0:00:05]} 81. Rh5 {[%emt 0:00:10]} f5 {[%emt 0:00:08]} 82. Rh8 {[%emt 0:00:09]} Ke5 {[%emt 0:00:03]} 83. Re8 {[%emt 0:00:06]} Ra6 {[%emt 0:00:05]} 84. Rc8 {[%emt 0:00:03]} Ra3+ {[%emt 0:00:02]} 85. Ke2 {[%emt 0:00:06]} Ke4 {[%emt 0:00:06]} 86. Rc4+ {[%emt 0:00:42]} Kd5 {[%emt 0:00:02]} 87. Rb4 {[%emt 0:00:00]} Ra5 {[%emt 0:00:05]} 88. Kf3 {[%emt 0:00:00]} Ke5 {[%emt 0:00:04]} 89. Ke2 {[%emt 0:00:00]} Kf6 {[%emt 0:00:02]} 90. Kf3 {[%emt 0:00:00]} Ra1 {[%emt 0:00:02]} 91. Kf2 {[%emt 0:00:00]} Kg5 {[%emt 0:00:03]} 92. Rc4 {[%emt 0:00:00]} e5 {[%emt 0:00:02]} 93. Kf3 {[%emt 0:00:00]} Ra2 {[%emt 0:00:03]} 94. e4 {[%emt 0:00:15]} f4 {[%emt 0:00:19]} 95. Rc6 {[%emt 0:00:01]} Ra3+ {[%emt 0:00:03]} 96. Kg2 {[%emt 0:00:04]} f3+ {[%emt 0:02:49]} 97. Kf2 Kf4 {[%emt 0:00:00]} 98. Rc4 {[%emt 0:00:10]} Ra2+ {[%emt 0:00:00]} 99. Ke1 {[%emt 0:00:01]} Kg3 {[%emt 0:00:00]} 100. Rc3 {[%emt 0:00:06]} Kg2 {[%emt 0:00:00]} 101. Rb3 {[%emt 0:00:03]} Ra1+ {[%emt 0:00:00]} 102. Kd2 {[%emt 0:00:01]} f2 {[%emt 0:00:00]} 0-1

[Event "15th Golden Prague Rapid Open"]
[Site "Prague"]
[Date "2019.06.30"]
[Round "2.1"]
[White "Kalousek, Zdenek"]
[Black "Jirovsky, Pavel"]
[Result "0-1"]
[ECO "A35"]
[WhiteElo "2005"]
[BlackElo "2322"]
[Annotator "NA"]
[PlyCount "104"]
[EventDate "2019.06.30"]
[EventType "swiss"]
[EventCountry "CZE"]
[SourceTitle "playchess.com"]
[Source "ChessBase"]
[SourceQuality "1"]
[TimeControl "720+3"]

1. c4 {[%emt 0:00:00]} c5 {[%emt 0:00:01]} 2. Nc3 {[%emt 0:00:00]} Nc6 {[%emt 0:00:02]} 3. Nf3 {[%emt 0:00:01]} g6 {[%emt 0:00:01]} 4. e3 {[%emt 0:00:01]} d6 {[%emt 0:00:03]} 5. d4 {[%emt 0:00:02]} Bg4 {[%emt 0:00:01]} 6. Be2 {[%emt 0:00:01]} Bg7 {[%emt 0:00:04]} 7. d5 {[%emt 0:00:03]} Bxf3 {[%emt 0:00:53]} 8. gxf3 {[%emt 0:00:03]} Ne5 {[%emt 0:00:08]} 9. f4 {[%emt 0:00:02]} Nd7 {[%emt 0:00:01]} 10. e4 {[%emt 0:00:20]} a6 {[%emt 0:00:08]} 11. h4 {[%emt 0:00:29]} Ngf6 {[%emt 0:00:16]} 12. h5 {[%emt 0:00:11]} Qb6 {[%emt 0:01:25]} 13. Qc2 {[%emt 0:02:33]} O-O-O {[%emt 0:00:06]} 14. Be3 {[%emt 0:00:17]} Nxh5 {[%emt 0:00:09]} 15. Bxh5 {[%emt 0:00:10]} gxh5 {[%emt 0:00:02]} 16. Rxh5 {[%emt 0:00:24]} Qb4 {[%emt 0:00:02]} 17. Qb3 {[%emt 0:00:45]} Qa5 {[%emt 0:02:05]} 18. f3 {[%emt 0:02:16]} Bd4 {[%emt 0:00:11]} 19. Ke2 {[%emt 0:00:10]} Rdg8 {[%emt 0:00:12]} 20. Rh2 {[%emt 0:00:42]} Qd8 {[%emt 0:00:55]} 21. Rah1 {[%emt 0:00:07]} Qf8 {[%emt 0:00:22]} 22. Kd3 {[%emt 0:00:40]} Rg3 {[%emt 0:00:17]} 23. Rh3 {[%emt 0:00:38]} Qg7 {[%emt 0:00:08]} 24. Ne2 {[%emt 0:00:03]} Rxh3 {[%emt 0:00:20]} 25. Rxh3 {[%emt 0:00:02]} Bxb2 {[%emt 0:01:38]} 26. Rg3 {[%emt 0:00:09]} Qf6 {[%emt 0:00:02]} 27. e5 {[%emt 0:00:01]} Qf5+ {[%emt 0:00:01]} 28. Kd2 {[%emt 0:00:05]} Bd4 {[%emt 0:00:07]} 29. Rg5 {[%emt 0:01:33]} Qh3 {[%emt 0:00:05]} 30. Bxd4 {[%emt 0:00:01]} cxd4 {[%emt 0:00:05]} 31. Nxd4 {[%emt 0:00:18]} Qh2+ {[%emt 0:00:29]} 32. Ke3 {[%emt 0:00:29]} dxe5 {[%emt 0:00:26]} 33. fxe5 {[%emt 0:00:07]} Nxe5 {[%emt 0:00:03]} 34. c5 {[%emt 0:00:03]} Qh6 {[%emt 0:00:21]} 35. f4 {[%emt 0:00:28]} Qh3+ {[%emt 0:00:04]} 36. Ke4 {[%emt 0:00:10]} Qxb3 {[%emt 0:00:08]} 37. axb3 {[%emt 0:00:01]} Nd7 {[%emt 0:00:02]} 38. c6 {[%emt 0:00:05]} Nf6+ {[%emt 0:00:04]} 39. Kd3 {[%emt 0:00:09]} h5 {[%emt 0:00:10]} 40. Kc4 {[%emt 0:00:09]} h4 {[%emt 0:00:11]} 41. Nf3 {[%emt 0:00:10]} h3 {[%emt 0:00:09]} 42. Nh2 {[%emt 0:00:00]} bxc6 {[%emt 0:00:25]} 43. dxc6 {[%emt 0:00:11]} Kc7 44. Rg7 {[%emt 0:00:00]} Rh7 {[%emt 0:00:31]} 45. Rg3 {[%emt 0:00:00]} Kxc6 {[%emt 0:00:05]} 46. b4 {[%emt 0:00:00]} e6 {[%emt 0:00:11]} 47. Ra3 {[%emt 0:00:01]} Kb6 {[%emt 0:00:03]} 48. Rd3 {[%emt 0:00:02]} Nd5 {[%emt 0:00:07]} 49. f5 {[%emt 0:00:06]} Rh4+ {[%emt 0:00:02]} 50. Rd4 {[%emt 0:00:04]} Ne3+ {[%emt 0:00:22]} 51. Kd3 {[%emt 0:00:04]} Rxd4+ {[%emt 0:00:02]} 52. Kxd4 {[%emt 0:00:01]} Nxf5+ {[%emt 0:00:01]} 0-1